Cogmind - Beta 13 @@@ ROGUE MODE // 2024.03.11 @ 18:15:42 Player: Dumalacath Result: Destroyed by Y-54 Guardian with Gatling Laser Performance ------------- Evolutions (0) 0 Regions Visited (3) 600 Robots Destroyed (25) 125 Value Destroyed (719) 719 Prototype IDs (12) 240 Alien Tech Used (0) 0 Bonus (0) 0 TOTAL SCORE: 1684 Bonus ------- None Cogmind --------- Core Integrity 0/250 Matter 0/300 Energy 196/200 System Corruption 0% Temperature Cool (8) Movement Walking (120) Location -7/Recycling Parts ------- > --- POWER (1) -------- Subdweller Power Source > --- PROPULSION (2) --- Carbon-fiber Leg Carbon-fiber Leg > --- UTILITY (2) ------ Armored Scrap Engine > --- WEAPON (2) ------- Grenade Launcher > --- INVENTORY (5) ---- Subdweller Optics Makeshift Light Armor Plating Rainbow Chip Peak State ------------ > --- POWER ------------ Subdweller Power Source > --- PROPULSION ------- Carbon-fiber Leg Carbon-fiber Leg > --- UTILITY ---------- Scrap Engine > --- WEAPON ----------- Beamcaster Subdweller Machine Gun > --- INVENTORY -------- Subdweller Optics Makeshift Light Armor Plating Rainbow Chip Grenade Launcher [Rating: 33] Favorites ----------- Power Subdweller Power Source Engine Subdweller Power Source Power Core Light Nuclear Core Propulsion Aluminum Leg Leg Aluminum Leg Utility Scrap Shield Device Subdweller Optics Storage Medium Storage Unit Processor Visual Processing Unit Protection Scrap Shield Weapon Subdweller Machine Gun Energy Gun Beamcaster Ballistic Gun Subdweller Machine Gun Ballistic Cannon Battle Cannon Launcher Grenade Launcher Build | -11 -10 -10 -7 ------- Run | Yrd Mat Sub Rec Slots Evolved . | . . . . Power . | . . . . Propulsion . | . . . . Utility . | . . . . Weapon . | . . . . Parts Attached 45 | 6 10 27 2 Power 5 | 1 1 3 . Engine 4 | 1 . 3 . Core 1 | . 1 . . Reactor . | . . . . Propulsion 10 | 2 3 5 . Treads . | . . . . Leg 10 | 2 3 5 . Wheel . | . . . . Hover . | . . . . Flight . | . . . . Utility 8 | 1 4 2 1 Device 2 | . . 1 1 Storage 3 | 1 2 . . Processor 2 | . 2 . . Hackware . | . . . . Protection 1 | . . 1 . Artifact . | . . . . Weapon 22 | 2 2 17 1 Energy Gun 8 | 1 1 6 . Energy Cannon . | . . . . Ballistic Gun 7 | 1 1 5 . Ballistic Cannon 1 | . . 1 . Launcher 6 | . . 5 1 Special Weapon . | . . . . Impact Weapon . | . . . . Slashing Weapon . | . . . . Piercing Weapon . | . . . . Special Melee Weapon . | . . . . Unidentified Prototypes . | . . . . Parts Lost 1 | . . 1 . Power . | . . . . Propulsion 1 | . . 1 . Utility . | . . . . Weapon . | . . . . Highest Loss Streak 1 | . . 1 . To Critical Strikes . | . . . . Average Slot Usage (%) 88 | . 97 86 61 Engine 10 | . 3 13 14 Core 3 | . 10 . . Leg 27 | . 27 27 28 Device 1 | . . 1 12 Storage 5 | . 14 2 . Processor 4 | . 12 . . Protection 7 | . . 11 . Energy Gun 8 | . 1 12 1 Ballistic Gun 15 | . 25 12 1 Ballistic Cannon 1 | . . 2 . Naked Turns . | . . . . Heaviest Build 32 | 13 18 32 32 Greatest Support 35 | 20 20 35 30 Greatest Overweight (x) 1 | 1 . 1 1 Average Overweight (x) . | . . . . Largest Inventory Capacity 10 | 8 10 10 5 Average Capacity 6 | 7 9 5 5 Most Carried 10 | 6 10 10 4 Average Carried 6 | 3 8 5 3 Final Capacity 10 | 8 10 5 5 Final Carried 8 | 6 8 4 3 Scrap Engine Consumption 3 | . . . 3 Class Distribution -------------------- 50% | Subdweller-Mutant 27% | Scavenger-Mutant 22% | Mutant Dominant Class ---------------- Scavenger-Mutant | -10/Materials Subdweller-Mutant | -10/Subcaves Mutant | -7/Recycling Resources | -11 -10 -10 -7 ----------- Run | Yrd Mat Sub Rec Matter Collected 825 | 224 243 358 . Remotely . | . . . . Salvage Created 687 | . 412 275 . Parts 39 | . 21 18 . Haulers Intercepted 2 | . 2 . . Recyclers Shooed 1 | . 1 . . Parts Field Recycled . | . . . . Retrieved Matter . | . . . . Parts Self-Destructed 4 | . . 4 . Prevented . | . . . . Kills | -11 -10 -10 -7 ------- Run | Yrd Mat Sub Rec Combat Hostiles Destroyed 20 | . 7 13 . Guns 12 | . 7 5 . AOE 8 | . . 8 . Classes Destroyed 7 | . 3 4 . Hauler 2 | . 2 . . Turret 2 | . . 2 . Watcher 1 | . 1 . . Swarmer 5 | . . 5 . Grunt 7 | . 7 . . Sentry 1 | . . 1 . Subdweller 7 | . . 7 . Best Kill Streak 4 | . 3 4 . Combat Bots Only 4 | . 3 4 . Max Kills in Single Turn 2 | . 1 2 . Gunslinging . | . . . . Exploded 2 | . . 2 . Melee . | . . . . Uniques/NPCs Destroyed . | . . . . Combat | -11 -10 -10 -7 -------- Run | Yrd Mat Sub Rec Hostile Shots Fired 210 | . 32 103 75 Missed 81 | . 8 47 26 Damage Taken 1289 | . 309 599 381 Core 256 | . 71 71 114 Absorbed by Shields . | . . . . Regen/Repaired (Parts) 47 | . 47 . . Core Remaining (%) 100 | 100 . . . Volleys Fired 100 | . 38 57 5 Largest 2 | . 2 2 1 Hottest 105 | . 60 105 30 Shots Fired 164 | . 76 83 5 Gun 134 | . 76 58 . Cannon 1 | . . 1 . Launcher 29 | . . 24 5 Special . | . . . . Kinetic 101 | . 74 27 . Thermal 34 | . 2 32 . Explosive 29 | . . 24 5 Electromagnetic . | . . . . Robot Hit Streak 22 | . 7 22 9 Robot Miss Streak 2 | . 2 2 . Penetration Max . | . . . . Secondary Targets . | . . . . Shots Hit Robots 88 | . 49 34 5 Core Hits 53 | . 18 33 2 Critical Kills 1 | . 1 . . Critical Parts Destroyed 2 | . 2 . . Critical Strikes 3 | . 3 . . Destroy 3 | . 3 . . Melee Attacks . | . . . . Impact . | . . . . Slashing . | . . . . Piercing . | . . . . Sneak Attacks . | . . . . Combat Hostiles . | . . . . Follow-up Attacks . | . . . . Damage Inflicted 2239 | . 533 1604 102 Guns 1067 | . 519 548 . Cannons . | . . . . Explosions 1158 | . . 1056 102 Melee . | . . . . Ramming 14 | . 14 . . Kinetic 786 | . 507 279 . Thermal 281 | . 12 269 . Explosive 1158 | . . 1056 102 Electromagnetic . | . . . . Impact . | . . . . Slashing . | . . . . Piercing . | . . . . Highest Corruption . | . . . . Average Corruption . | . . . . Corruption Purged . | . . . . Corruption Blocked . | . . . . Overload Shots . | . . . . Overflow Damage 67 | . . 67 . Projectiles . | . . . . Explosions 67 | . . 67 . Melee . | . . . . Knockbacks . | . . . . Impact . | . . . . Kinetic . | . . . . Secondary . | . . . . Self-Inflicted Damage 31 | . . . 31 Shots 4 | . . . 4 Rammed . | . . . . Targets Rammed 6 | . 6 . . Kicked 6 | . 6 . . Crushed . | . . . . Highest Temperature 26 | . 21 26 7 Average Temperature 7 | . 7 12 4 Received Heat Transfer 366 | . 174 96 96 Siege Activations . | . . . . Robots Corrupted . | . . . . Combat Hostiles . | . . . . Parts Fried . | . . . . Impact Corruptions . | . . . . Robots Melted . | . . . . Combat Hostiles . | . . . . Parts Melted . | . . . . Heat Transferred 494 | . 25 469 . Parts Sabotaged . | . . . . Parts Stolen . | . . . . Parts Stripped . | . . . . Power Chain Reactions . | . . . . Alert | -11 -10 -10 -7 ------- Run | Yrd Mat Sub Rec Peak Influence 576 | . 215 . 576 Initial 542 | . . . 542 Average 179 | . 98 . 550 Maximum Alert Level 2 | . 1 . 2 Low Security (%) 75 | 100 93 . . Level 1 4 | . 6 . . Level 2 19 | . . . 100 Level 3 . | . . . . Level 4 . | . . . . Level 5 . | . . . . High Security . | . . . . Max Security . | . . . . Squads Dispatched 2 | . 2 . . Investigation 1 | . 1 . . Extermination . | . . . . Reinforcement 1 | . 1 . . Assault . | . . . . Garrison . | . . . . Intercept . | . . . . Searches Triggered . | . . . . Construction Impeded . | . . . . Haulers Reinforced . | . . . . Active Scanning Responses . | . . . . Cargo Convoy Interrupts . | . . . . Stealth | -11 -10 -10 -7 --------- Run | Yrd Mat Sub Rec Distress Signals . | . . . . Communications Jammed . | . . . . Distress Signals . | . . . . Times Spotted 65 | . 12 52 1 Peak Tracking Total 6 | . 4 6 1 Tactical Retreats 8 | . 3 5 . Traps | -11 -10 -10 -7 ------- Run | Yrd Mat Sub Rec Traps Triggered 2 | . 1 1 . Indirectly . | . . . . Trap Hack Attempts . | . . . . Triggered . | . . . . Disarmed . | . . . . Reprogrammed . | . . . . Reused . | . . . . Traps Extracted . | . . . . Installed . | . . . . Triggered . | . . . . Machines | -11 -10 -10 -7 ---------- Run | Yrd Mat Sub Rec Machines Disabled 4 | . . 4 . Max in Single Turn 2 | . . 2 . Machines Repaired . | . . . . Machines Dismantled . | . . . . Machines Sabotaged . | . . . . Overloaded Fab Kills . | . . . . Hacking | -11 -10 -10 -7 --------- Run | Yrd Mat Sub Rec Machines Accessed 7 | . 5 1 1 Terminals 5 | . 4 . 1 Fabricators . | . . . . Repair Stations 1 | . 1 . . Recycling Units . | . . . . Scanalyzers . | . . . . Garrison Access . | . . . . Total Hacks 18 | . 14 2 2 Successful 12 | . 9 2 1 Failed 6 | . 5 . 1 Catastrophic 3 | . 2 . 1 Database Lockouts . | . . . . Manual 8 | . 6 . 2 Terminals 14 | . 12 . 2 Fabricators . | . . . . Repair Stations 2 | . 2 . . Recycling Units . | . . . . Scanalyzers . | . . . . Garrison Access . | . . . . Terminal Hacks 6 | . 4 2 . Record 1 | . . 1 . Prototype ID Bank 1 | . 1 . . Branch Access Points 1 | . 1 . . Locate Traps 1 | . 1 . . Registered Components 1 | . 1 . . Derelict Proto ID Bank 1 | . . 1 . Fabricator Hacks . | . . . . Repair Station Hacks 2 | . 2 . . Scan Component 1 | . 1 . . Repair 1 | . 1 . . Recycling Unit Hacks . | . . . . Scanalyzer . | . . . . Garrison Access Hacks . | . . . . Unauthorized Hacks 4 | . 3 . 1 Terminals 4 | . 3 . 1 Botnet 4 | . 3 . 1 Fabricators . | . . . . Repair Stations . | . . . . Recycling Units . | . . . . Scanalyzers . | . . . . Garrison Access . | . . . . Data Cores Recovered . | . . . . Used . | . . . . Hacking Detections 5 | . 4 . 1 Full Trace Events . | . . . . Feedback Events . | . . . . Feedback Blocked . | . . . . Robot Schematics Acquired . | . . . . Robots Built . | . . . . Authchips . | . . . . Time . | . . . . Total Robot Build Rating . | . . . . Part Schematics Acquired . | . . . . Parts Built . | . . . . Authchips . | . . . . Time . | . . . . Total Part Build Rating . | . . . . Parts Repaired 1 | . 1 . . Time 26 | . 26 . . Parts Recycled . | . . . . Recycled Matter . | . . . . Retrieved Matter . | . . . . Retrieved Components . | . . . . Parts Scanalyzed . | . . . . Part Schematics Acquired . | . . . . Parts Damaged . | . . . . Bothacking | -11 -10 -10 -7 ------------ Run | Yrd Mat Sub Rec Used RIF Installer . | . . . . Robots Hacked . | . . . . Non-combat . | . . . . Combat . | . . . . Robot Hacks Applied . | . . . . Relay Couplers Released . | . . . . Fabnet Peak Effective % . | . . . . Robots Rewired . | . . . . Allies Hacked . | . . . . Hacks Repelled . | . . . . Allies | -11 -10 -10 -7 -------- Run | Yrd Mat Sub Rec Total Allies . | . . . . Largest Group . | . . . . Highest-Rated Group . | . . . . Highest-Rated Ally . | . . . . Total Orders . | . . . . Ally Attacks . | . . . . Total Damage . | . . . . Kills . | . . . . Allies Corrupted . | . . . . Allies Melted . | . . . . Intel | -11 -10 -10 -7 ------- Run | Yrd Mat Sub Rec Robot Analysis Total . | . . . . Derelict Logs Recovered 2 | . . 2 . Drone Launches . | . . . . Drone Recoveries . | . . . . Exploration | -11 -10 -10 -7 ------------- Run | Yrd Mat Sub Rec Turns Passed 2464 | 83 725 1458 198 Spaces Moved 1417 | 58 406 877 76 Core 10 | 10 . . . Treads . | . . . . Legs 1407 | 48 406 877 76 Wheels . | . . . . Hover . | . . . . Flight . | . . . . Fastest Speed 50 | 50 120 120 120 Average Speed 128 | 118 120 133 124 Slowest Speed 190 | 190 120 190 190 Overloaded Moves . | . . . . Propulsion Burnouts . | . . . . Robots Hopped . | . . . . Cave-ins Triggered . | . . . . Exploration Rate (%) 32 | 4 67 47 12 Regions Visited 3 Branch Regions 2 Pre-discovered Areas 2 | . . 2 . Known Exits Taken 2 | . 1 1 . Unknown Exits Taken 1 | 1 . . . Scrap Searched 11 | . . 11 . Spaces Dug . | . . . . Terrain Destroyed 93 | . . 73 20 Melee . | . . . . Projectile 2 | . . 2 . AOE 91 | . . 71 20 Terrain Rammed . | . . . . Walls Destroyed . | . . . . Machines Disabled . | . . . . Actions | -11 -10 -10 -7 --------- Run | Yrd Mat Sub Rec Total 1905 | 69 578 1082 176 Wait 269 | . 91 88 90 Move 1414 | 57 405 876 76 Hop . | . . . . Pick Up 29 | 6 16 7 . Fast Attach 17 | 6 3 7 1 Attach 5 | . 2 2 1 Detach 1 | . . 1 . Swap 23 | . 5 18 . Drop 37 | . 12 22 3 Fire 100 | . 38 57 5 Melee . | . . . . Ram . | . . . . Kick 6 | . 6 . . Crush . | . . . . Escape Stasis . | . . . . Rewire . | . . . . Trap . | . . . . Miscellaneous 4 | . . 4 . Route ------- -11/Scrapyard -10/Materials (discovered 4 exits: [*Mat x2] / *Min / *Sub) -10/Subcaves -7/Recycling History --------- Turn | Location | Event 15 | -11/Scrapyard | Discovered new exit (range 15) 84 | -11/Scrapyard | Entered Materials 170 | -10/Materials | Discovered new exit (range 15) 300 | -10/Materials | Build established: Mutant 374 | -10/Materials | Repaired Aluminum Leg 409 | -10/Materials | Discovered new exit (range 9) 642 | -10/Materials | Discovered new exit (range 18) 663 | -10/Materials | Build established: Scavenger-Mutant 704 | -10/Materials | Identified exit to Mines 782 | -10/Materials | Discovered new exit (range 9) 797 | -10/Materials | Identified exit to Subcaves 809 | -10/Materials | Entered Subcaves 816 | -10/Subcaves | Ambushed by Subdwellers from Twisted Machinery 958 | -10/Subcaves | Learned location of Zion (-7) 958 | -10/Subcaves | Met a Zionite searching for "candidates" 1056 | -10/Subcaves | Ambushed by swarm of Subdwellers 1122 | -10/Subcaves | Lost 4 allies 1265 | -10/Subcaves | Disturbed a concealed Subdweller 1345 | -10/Subcaves | A swath of the cavern ceiling suddenly collapsed 1439 | -10/Subcaves | Ambushed by Subdwellers from Twisted Machinery 1591 | -10/Subcaves | Build established: Subdweller-Mutant 1640 | -10/Subcaves | A swath of the cavern ceiling suddenly collapsed 1776 | -10/Subcaves | Identified exit to Recycling 1986 | -10/Subcaves | Visited 4L-MR0's lab 2009 | -10/Subcaves | Found Rainbow Chip 2157 | -10/Subcaves | Core integrity fell below 50% 2173 | -10/Subcaves | Ambushed by Subdweller buried in earth 2267 | -10/Subcaves | Entered Recycling 2281 | -7/Recycling | Found Scrap Engine 2434 | -7/Recycling | Core integrity fell below 20% 2465 | -7/Recycling | Destroyed by Y-54 Guardian with Gatling Laser Last Messages --------------- GOAL=ESCAPE 02279_ Dropped Scrap Shield. 02281_ Acquired Scrap Engine. 02282_ Dropped Beamcaster. 02283_ Dropped Sub. Machine Gun. 02291_ Scrap Engine consumes Sub. Machine Gun. 02292_ Scrap Engine consumes Beamcaster. 02294_ Scrap Engine consumes Scrap Shield. 02324_ Scrap Engine envelopes itself in armor. 02398_ Connecting with Terminal... >>Trojan(Botnet) Trojan loaded successfully. Testing... Terminal linked with 0 systems. Awaiting botnet instructions. 02420_ Y-54 Guardian springs to life. 02451_ U-05 Engineer lays Concrete. 02455_ U-05 Engineer builds a Wall. 02458_ The unstable cave ceiling collapses. 02459_ U-05 Engineer builds a Wall. Map ----- +----------------------------------------------------+ | ??????????????????????????????????????????? | | ??????????????????????????????????????????? | | ??????????????????????????????????????????? | | ??????????????????????????????????????????? | | ??????????????????????????????????????????? | | ??????????????????????????????????????????? | | ??????????????????????????????????????????? | | ??????????????????????????????????????????? | | ??????????????????????????????????????????? | | ???????????????????????????###########+##?? | | ???????????????????????????# #?? | | ???????????????????????????#"" #?? | | ???????????????????????????#"" """ """ #?? | | ???????????????????????????#"T """ """ #?? | | ???????????????????????????#"" """ """ #?? | | ???????????????????????????#"" """ """ #?? | | ???????????????????????????# """ """ #?? | | ???????????????????????????# #?? | | ???????????????????????????# #?? | | ????????????????????????#### #?? | | ???????????????????????## ## #?? | | ??????????????????????## #?? | | ???????????###+##+###### ### ##+######?? | | ?????????? #?????? | | ?????????? r #?????? | | ?????????? @ #?????? | | ?????????????????####### # ## #?????? | | ????????????????????# Y### #?????? | | ???????????????????# #?# #?????? | | ???????????????????## #?# #?????? | | ????????????????????# #?# #?????? | | ???????????????????#r #?# #?????? | | ???????????????????## #?# #?????? | | ????????????????????# #?#####?????? | | ????????????????????# #???????????? | | ????????????????????###########???????????? | | ??????????????????????????????????????????? | | ??????????????????????????????????????????? | | ??????????????????????????????????????????? | | ??????????????????????????????????????????? | | ??????????????????????????????????????????? | | ??????????????????????????????????????????? | | ??????????????????????????????????????????? | | ??????????????????????????????????????????? | | ??????????????????????????????????????????? | | ??????????????????????????????????????????? | | | | | | | | | +----------------------------------------------------+ Best States ------------- Heat Dissipation 25 Energy Generation 15 Energy Capacity 250 Matter Stores 300 Matter Capacity 300 Sight Range 21 Terrain Scan Density 10 Armor Coverage 800 Evasion (%) 55 Item Schematics ----------------- None Robot Schematics ------------------ None Fabricated ------------ Nothing Alien Tech Used ----------------- None Achievements -------------- None Challenges ------------ None Game ------ Seed ClaymoresNodeSplitter Manual? 0 Play Time 00:44:12 Cumulative 64.7 hours Start 2024.03.11 @ 16:25:34 End 2024.03.11 @ 18:15:42 Sessions 1 Manual Loads 0 Difficulty Rogue Special Mode None Game No. 43 Rogue 43 Adventurer 0 Explorer 0 Win Type - Total 0 Types 0/0/0/0/0/0/0/0/0 Lore% 25 Gallery% 42 Achievement% 36 Wizard Run 0 Options --------- Layout 1 ASCII 0 Keyboard 0 Movement Numpad Keybinds 0 Fullscreen 2 Font 24/Smallcaps Map View 50x35 Zoom Use 0% Tactical HUD 1 Map Filters NONE Filters NONE Steam 1 RUN: c7450a26-f943-4a36-8cfd-1af0d46823da